bitfinex-derivatives/quotes_BTCF0:USTF0_20240820
["timestamp","ask_amount","ask_price","bid_price","bid_amount"]
[1724132134163,0.3648,61167.0,61166.0,0.10724153]
[1724132134473,0.3648,61167.0,61166.0,0.081699]
[1724132134662,1.42528,61167.0,61166.0,0.081699]
[1724132135170,5.19528,61167.0,61166.0,0.081699]
[1724132135471,4.79528,61167.0,61166.0,0.081699]
[1724132135654,4.8114194,61167.0,61166.0,0.081699]
[1724132136060,4.86029446,61167.0,61166.0,0.081699]
[1724132136365,4.84415506,61167.0,61166.0,0.081699]
[1724132136860,5.19528,61167.0,61166.0,0.081699]
[1724132137170,5.276978,61167.0,61165.0,0.00024509]
[1724132137366,0.0817,61166.0,61165.0,0.00024509]
[1724132137664,0.72218,61166.0,61165.0,0.00024509]
[1724132137861,1.12218,61166.0,61165.0,0.00024509]
[1724132138458,4.89218,61166.0,61165.0,0.00024509]
[1724132138667,4.95742863,61166.0,61165.0,0.00024509]
[1724132139171,4.81868293,61166.0,61158.0,0.081709]
[1724132139371,0.725009,61159.0,61150.0,0.06465384]
[1724132139669,0.20851,61158.0,61154.0,0.081715]
[1724132139964,0.2825,61155.0,61154.0,0.081715]
[1724132141964,0.2885,61155.0,61154.0,0.081715]
[1724132144363,0.006,61155.0,61154.0,0.19745939]
[1724132144572,0.006,61155.0,61154.0,0.13280555]
[1724132145673,0.001,61155.0,61154.0,0.27908495]
[1724132145972,0.002,61155.0,61154.0,0.26260555]
[1724132146178,0.002,61155.0,61154.0,0.13380555]
[1724132146473,0.002,61155.0,61154.0,0.19856178]
[1724132146678,0.002,61155.0,61154.0,0.13380555]
[1724132147766,0.001,61155.0,61154.0,0.13380555]
[1724132147973,0.001,61155.0,61154.0,0.13280555]
[1724132148169,0.002,61155.0,61154.0,0.13380534]
[1724132148575,0.002,61155.0,61154.0,0.10826017]
[1724132148576,0.001,61155.0,61154.0,0.10826017]
[1724132148971,0.491,61158.0,61157.0,0.081712]
[1724132149579,0.53988035,61158.0,61157.0,0.081712]
[1724132149780,0.491,61158.0,61157.0,0.081712]
[1724132150080,0.491,61158.0,61157.0,0.1072584]
[1724132150081,0.40971334,61158.0,61157.0,0.1072584]
[1724132150479,0.3608,61158.0,61157.0,0.1072584]
[1724132150779,0.3628,61158.0,61157.0,0.1072584]
[1724132151476,0.3638,61158.0,61157.0,0.12379559]
[1724132151780,0.3638,61158.0,61157.0,0.081712]
[1724132151982,0.3628,61158.0,61157.0,0.081712]
[1724132152172,0.3648,61158.0,61157.0,0.081712]
[1724132153481,0.41372225,61158.0,61157.0,0.081712]
[1724132153876,0.3648,61158.0,61157.0,0.081712]
[1724132155576,0.4908,61158.0,61157.0,0.081712]
[1724132155977,0.53972252,61158.0,61157.0,0.081712]
[1724132156875,0.4908,61158.0,61157.0,0.081712]
[1724132157180,0.53972669,61158.0,61157.0,0.081712]
[1724132157775,0.53973001,61158.0,61157.0,0.081712]
[1724132158474,0.4908,61158.0,61157.0,0.081712]
[1724132159383,1.15132,61158.0,61157.0,0.081712]
[1724132159680,0.7259738,61158.0,61152.0,0.081718]
[1724132159879,0.6433,61153.0,61152.0,0.081718]
[1724132160481,4.4133,61153.0,61152.0,0.081718]
[1724132160891,4.4133,61153.0,61152.0,0.10726597]
[1724132161079,4.4133,61153.0,61152.0,0.001]
[1724132161385,4.4794738,61153.0,61152.0,0.001]
[1724132161585,4.496017,61153.0,61152.0,0.001]
[1724132161784,0.081721,61150.0,61149.0,0.00013881]
[1724132162087,0.50779542,61150.0,61149.0,0.00013881]
[1724132162289,0.442521,61150.0,61149.0,0.00013881]
[1724132162679,4.212521,61150.0,61149.0,0.00013881]
[1724132162881,5.103121,61150.0,61149.0,0.00013881]
[1724132163083,5.253121,61150.0,61149.0,0.00013881]
[1724132163293,5.26910158,61150.0,61149.0,0.00013881]
[1724132165083,4.212521,61150.0,61149.0,0.00013881]
[1724132165285,0.08173,61144.0,61137.0,0.06475623]
[1724132165493,0.69222626,61142.0,61138.0,0.02555263]
[1724132165684,0.69222626,61142.0,61139.0,0.02555263]
[1724132165982,0.69222626,61142.0,61137.0,0.081738]
[1724132165983,0.337333,61141.0,61137.0,0.081738]
[1724132166186,0.04908737,61140.0,61133.0,0.06475623]
[1724132166496,0.04908737,61140.0,61132.0,0.14650123]
[1724132166497,0.3608,61134.0,61132.0,0.14650123]
[1724132166786,0.3608,61134.0,61133.0,0.02555437]
[1724132167292,0.081746,61132.0,61127.0,0.081751]
[1724132167687,0.209247,61131.0,61127.0,0.081751]
[1724132167890,0.081747,61131.0,61127.0,0.081751]
[1724132168692,0.6443,61134.0,61125.0,0.42555623]
[1724132168990,0.081759,61122.0,61119.0,0.06475623]
[1724132169197,0.3608,61126.0,61116.0,0.081766]
[1724132169198,0.6433,61121.0,61116.0,0.08142353]
[1724132169493,0.08192311,61120.0,61116.0,0.0166673]
[1724132169683,0.08192311,61120.0,61114.0,0.1246]
[1724132169881,0.08192311,61120.0,61114.0,0.14078207]
[1724132170291,0.08192311,61120.0,61114.0,0.22255107]
[1724132170687,0.08192311,61120.0,61114.0,0.09795107]
[1724132170895,0.081763,61119.0,61114.0,0.09795107]
[1724132171092,0.081764,61118.0,61114.0,0.01618207]
[1724132171392,0.081764,61118.0,61111.0,0.3608]
[1724132171591,0.081765,61117.0,61112.0,0.02556178]
[1724132171787,0.6433,61113.0,61106.0,0.06491702]
[1724132171989,0.6433,61113.0,61108.0,0.128]
[1724132171990,0.081775,61110.0,61108.0,0.128]
[1724132172693,0.081777,61108.0,61106.0,0.00016079]
[1724132173083,0.2825,61107.0,61106.0,0.00016079]
[1724132173301,0.6433,61107.0,61106.0,0.00016079]
[1724132173590,0.7657,61107.0,61106.0,0.00016079]
[1724132173792,1.65666,61107.0,61106.0,0.00016079]
[1724132173989,1.65666,61107.0,61081.0,0.42555623]
[1724132173990,0.081782,61105.0,61082.0,0.1314]
[1724132174189,0.3608,61090.0,61082.0,0.1314]
[1724132174383,0.3608,61091.0,61082.0,0.1314]
[1724132174786,3.77,61089.0,61082.0,0.14763113]
[1724132174987,3.77,61089.0,61088.0,0.081804]
[1724132175188,3.77014032,61089.0,61088.0,0.081804]
[1724132175394,3.77014032,61089.0,61088.0,0.972884]
[1724132175597,0.3608,61098.0,61097.0,0.081792]
[1724132176096,0.00024552,61100.0,61099.0,0.081789]
[1724132176490,0.00024552,61100.0,61093.0,0.213197]
[1724132176491,3.77024552,61100.0,61093.0,0.213197]
[1724132176697,0.36096964,61099.0,61093.0,0.213197]
[1724132176896,0.2825,61098.0,61094.0,0.081795]
[1724132177100,0.36096964,61099.0,61098.0,0.081791]
[1724132177501,0.00016964,61099.0,61098.0,0.081791]
[1724132179191,3.77108552,61100.0,61098.0,0.081791]
[1724132179388,3.77024552,61100.0,61093.0,0.3608]
[1724132179591,3.77024552,61100.0,61088.0,0.2605]
[1724132179592,0.3608,61095.0,61088.0,0.2605]
[1724132179788,0.3608,61095.0,61089.0,0.081802]
[1724132179989,0.081792,61097.0,61089.0,0.081802]
[1724132179990,0.3608,61090.0,61089.0,0.081802]
[1724132180194,0.3608,61090.0,61083.0,0.40791]
[1724132180405,0.3608,61090.0,61082.0,0.3608]
[1724132180701,0.3608,61090.0,61088.0,0.081804]
[1724132181507,0.3618,61090.0,61088.0,0.081804]
[1724132181793,0.3618,61090.0,61089.0,0.2443]
[1724132182201,0.3628,61090.0,61089.0,0.2443]
[1724132184598,0.3628,61090.0,61089.0,1.13538]
[1724132184895,3.77024552,61100.0,61089.0,1.13538]
[1724132184896,3.77024552,61100.0,61099.0,0.081789]
[1724132185100,3.77024552,61100.0,61099.0,0.442589]
[1724132185301,3.77024552,61100.0,61099.0,1.333589]
[1724132185700,3.77024552,61100.0,61099.0,0.933589]
[1724132185895,3.77024552,61100.0,61099.0,0.442589]
[1724132186296,3.77024552,61100.0,61099.0,0.081789]
[1724132186594,3.77024552,61100.0,61089.0,0.6051]
[1724132186595,4.13104552,61100.0,61089.0,0.6051]
[1724132186796,4.13104552,61100.0,61096.0,0.081793]
[1724132187394,3.77024552,61100.0,61097.0,0.081792]
[1724132187793,0.3608,61098.0,61092.0,0.081798]
[1724132187998,0.442591,61098.0,61092.0,0.081798]
[1724132188192,0.442591,61098.0,61096.0,0.002]
[1724132188697,0.442591,61098.0,61089.0,0.2453]
[1724132188894,0.442591,61098.0,61097.0,0.002]
[1724132189301,0.442591,61098.0,61094.0,0.081796]
[1724132189508,0.442591,61098.0,61089.0,0.2453]
[1724132189509,0.3618,61098.0,61096.0,0.083793]
[1724132190501,0.3618,61098.0,61097.0,0.001]
[1724132191096,0.3608,61098.0,61097.0,0.001]
[1724132191395,0.442592,61098.0,61097.0,0.001]
[1724132191602,0.933592,61098.0,61097.0,0.00085967]
[1724132192308,0.081803,61089.0,61077.0,0.5399]
[1724132192601,0.2608,61082.0,61076.0,0.01628387]
[1724132192806,0.2608,61082.0,61073.0,0.1221]
[1724132193502,0.2608,61082.0,61081.0,0.081813]
[1724132194209,0.2618,61082.0,61081.0,0.082813]
[1724132194606,0.2608,61082.0,61081.0,0.082813]
[1724132194805,0.2618,61082.0,61081.0,0.082813]
[1724132195001,0.2628,61082.0,61081.0,0.082813]
[1724132195899,0.002,61082.0,61081.0,0.973973]
[1724132196510,0.002,61082.0,61081.0,1.03872923]
[1724132196805,0.00024552,61084.0,61083.0,0.081811]
[1724132197302,0.00024552,61084.0,61083.0,1.09755494]
[1724132197603,0.26,61097.0,61083.0,1.09653358]
[1724132197801,0.26,61097.0,61095.0,0.081793]
[1724132198204,3.77088,61098.0,61090.0,0.3608]
[1724132198400,3.77,61098.0,61091.0,0.06472793]
[1724132198601,3.77,61098.0,61092.0,0.06472793]
[1724132199408,3.77,61098.0,61096.0,0.081792]
[1724132200305,0.001,61097.0,61095.0,0.001]
[1724132200506,0.083792,61097.0,61095.0,0.004]
[1724132200705,0.083792,61097.0,61095.0,0.06872793]
[1724132200908,0.082792,61097.0,61096.0,0.001]
[1724132201103,0.09087211,61097.0,61096.0,0.001]
[1724132201301,0.09087211,61097.0,61095.0,0.003]
[1724132201302,0.081793,61096.0,61095.0,0.003]
[1724132201503,0.081793,61096.0,61095.0,0.005]
[1724132201703,3.851793,61096.0,61095.0,0.005]
[1724132202007,3.851793,61096.0,61093.0,0.06472793]
[1724132202008,0.081795,61095.0,61093.0,0.06472793]
[1724132202312,3.77,61096.0,61088.0,0.00024552]
[1724132202514,0.081803,61089.0,61088.0,0.00024552]
[1724132203002,0.202303,61089.0,61088.0,0.00024552]
[1724132203403,0.081809,61084.0,61083.0,0.08078964]
[1724132203598,4.495109,61084.0,61082.0,0.06503342]
[1724132204096,4.495109,61084.0,61083.0,0.06503052]
[1724132204412,0.081812,61083.0,61081.0,1.02861842]
[1724132204611,0.081812,61083.0,61081.0,0.96383342]
[1724132204908,0.081812,61083.0,61082.0,0.002]
[1724132205505,0.081812,61083.0,61082.0,0.003]
[1724132205806,0.081812,61083.0,61081.0,0.36563342]
[1724132206017,0.13073826,61083.0,61081.0,0.36563342]
[1724132206314,0.082812,61083.0,61081.0,0.36763342]
[1724132206511,0.13173826,61083.0,61081.0,0.36763342]
[1724132206904,0.49116,61082.0,61068.0,0.01563546]
[1724132207112,0.401,61083.0,61065.0,0.3608]
[1724132207113,0.3608,61072.0,61065.0,0.3608]
[1724132207310,0.3608,61072.0,61070.0,0.081828]
[1724132208015,0.3608,61072.0,61064.0,0.3608]
[1724132208203,0.3608,61072.0,61065.0,0.2547]
[1724132208408,0.3618,61072.0,61070.0,0.081827]
[1724132208614,0.3618,61072.0,61069.0,0.3608]
[1724132208615,0.002,61072.0,61069.0,0.3608]
[1724132208912,0.002,61072.0,61065.0,0.3618]
[1724132208913,0.3608,61071.0,61065.0,0.3618]
[1724132209116,3.77,61070.0,61065.0,0.3618]
[1724132209307,3.77,61070.0,61068.0,0.08183]
[1724132209710,3.77,61070.0,61066.0,0.1328]
[1724132209912,3.77,61070.0,61065.0,0.001]
[1724132209913,3.77,61070.0,61065.0,0.04871985]
[1724132210111,0.6433,61066.0,61065.0,0.04873319]
[1724132210308,0.081835,61065.0,61063.0,0.04873319]
[1724132210516,0.6433,61066.0,61062.0,0.04873319]
[1724132210811,3.851836,61064.0,61062.0,0.04873319]
[1724132211206,3.851836,61064.0,61060.0,0.04873319]
[1724132211402,0.3608,61061.0,61058.0,0.04873319]
[1724132211606,0.2825,61057.0,61056.0,0.00019981]
[1724132211817,0.364346,61057.0,61056.0,0.00019981]
[1724132212026,0.3608,61061.0,61056.0,0.00019981]
[1724132212812,0.36458352,61063.0,61056.0,0.00019981]
[1724132213011,0.00024552,61063.0,61058.0,0.40953319]
[1724132213222,0.00024552,61063.0,61059.0,0.04873319]
[1724132213516,0.00024552,61063.0,61056.0,0.00019981]
[1724132213712,0.3608,61062.0,61056.0,0.048933]
[1724132213907,0.3608,61061.0,61057.0,0.04873319]
[1724132214103,0.44264,61061.0,61056.0,0.00019981]
[1724132214513,0.3608,61061.0,61057.0,0.04873319]
[1724132214715,0.3608,61061.0,61058.0,0.04873319]
[1724132214910,0.3608,61061.0,61059.0,0.04873319]
[1724132215116,0.3608,61061.0,61060.0,0.1322]
[1724132215619,0.3608,61061.0,61056.0,0.00019981]
[1724132215916,0.364346,61057.0,61056.0,0.00019981]
[1724132216617,4.134346,61057.0,61056.0,0.00019981]
[1724132218318,5.175706,61057.0,61056.0,0.00019981]
[1724132218516,4.625706,61057.0,61056.0,0.00019981]
[1724132221117,4.707552,61057.0,61056.0,0.00019981]
[1724132222118,0.081855,61050.0,61049.0,0.1247]
[1724132222309,0.725155,61050.0,61049.0,0.1247]
[1724132222721,4.495155,61050.0,61049.0,0.1247]
[1724132223219,4.85613329,61050.0,61040.0,0.1304]
[1724132223421,0.081866,61042.0,61041.0,0.1299]
[1724132223610,0.725166,61042.0,61041.0,0.1299]
[1724132224321,4.495166,61042.0,61041.0,0.1299]
[1724132224915,4.1318,61042.0,61041.0,0.1299]
[1724132225115,4.1318,61042.0,61041.0,0.211767]
[1724132225116,3.771,61042.0,61041.0,0.211767]
[1724132226323,3.772,61042.0,61041.0,0.211767]
[1724132227918,3.772,61042.0,61041.0,0.1299]
[1724132228323,3.853866,61042.0,61041.0,0.1299]
[1724132231233,4.214666,61042.0,61041.0,0.1299]
[1724132231524,3.853866,61042.0,61041.0,0.1299]
[1724132232816,3.852866,61042.0,61041.0,0.1299]
[1724132233132,3.853866,61042.0,61041.0,0.1299]
[1724132240030,3.772,61042.0,61041.0,0.1299]
[1724132240329,3.772,61042.0,61041.0,0.211767]
[1724132240922,0.00024573,61048.0,61047.0,0.081859]
[1724132241119,0.28274573,61048.0,61044.0,0.04875149]
[1724132241331,0.364362,61045.0,61043.0,0.04875149]
[1724132241828,0.081863,61044.0,61043.0,0.04875149]
[1724132242133,3.851863,61044.0,61043.0,0.04875149]
[1724132242523,3.85411071,61044.0,61043.0,0.04875149]
[1724132243024,3.85511071,61044.0,61043.0,0.04875149]
[1724132243220,3.77324771,61044.0,61043.0,0.13061549]
[1724132243424,3.77324771,61044.0,61043.0,0.442664]
[1724132243933,3.77424771,61044.0,61043.0,0.443664]
[1724132244128,3.77424771,61044.0,61043.0,0.49245401]
[1724132244329,3.77424771,61044.0,61043.0,0.49246703]
[1724132244832,3.77424771,61044.0,61043.0,0.443664]
[1724132245421,3.77424771,61044.0,61043.0,0.935104]
[1724132245629,0.00017829,61050.0,61049.0,0.081856]
[1724132245828,0.00017829,61050.0,61049.0,1.45875803]
[1724132246031,3.77,61050.0,61049.0,1.45875803]
[1724132246235,3.77,61050.0,61049.0,1.68784458]
[1724132246432,0.2825,61065.0,61061.0,0.081839]
[1724132246626,0.33149566,61065.0,61064.0,0.048764]
[1724132246935,4.10149566,61065.0,61064.0,0.048764]
[1724132247429,4.10149566,61065.0,61063.0,0.048764]
[1724132247430,4.0525,61065.0,61063.0,0.048764]
[1724132247828,4.0525,61065.0,61064.0,0.048764]
[1724132247829,3.77,61065.0,61064.0,0.048764]
[1724132248130,3.77,61065.0,61063.0,0.207137]
[1724132248333,3.77,61065.0,61063.0,0.22297299]
[1724132248530,3.77,61065.0,61063.0,0.207137]
[1724132248531,0.2825,61064.0,61063.0,0.207137]
[1724132249022,0.2825,61064.0,61063.0,0.1253]
[1724132249427,0.2825,61064.0,61063.0,0.1263]
[1724132250132,0.2825,61064.0,61063.0,0.1253]
[1724132250439,0.2845,61064.0,61063.0,0.1293]
[1724132250635,0.002,61064.0,61063.0,0.1293]
[1724132250935,0.001,61064.0,61063.0,0.1273]
[1724132251327,0.001,61064.0,61063.0,0.17599362]
[1724132251727,0.00024573,61069.0,61064.0,0.49128]
[1724132251927,0.081816,61079.0,61074.0,0.081822]
[1724132252122,0.081816,61079.0,61075.0,0.4851]
[1724132252322,0.2825,61082.0,61075.0,0.4851]
[1724132252839,3.77,61078.0,61076.0,0.08182]
[1724132253236,0.2825,61077.0,61075.0,0.1243]
[1724132253434,0.081822,61075.0,61072.0,0.00024573]
[1724132253639,0.2825,61077.0,61072.0,0.00024573]
[1724132253640,0.081823,61074.0,61072.0,0.00024573]
[1724132254638,0.3608,61073.0,61072.0,0.00024573]
[1724132254838,0.081823,61074.0,61072.0,0.00024573]
[1724132255029,0.2895,61077.0,61072.0,0.00024573]
[1724132255230,0.2895,61077.0,61074.0,0.081823]
[1724132255435,0.2895,61077.0,61072.0,0.00024573]
[1724132255832,3.77,61073.0,61072.0,0.00024573]
[1724132257030,3.77,61073.0,61072.0,0.57327073]
[1724132257434,3.77,61073.0,61072.0,0.97327073]
[1724132258336,0.2825,61089.0,61073.0,0.4912]
[1724132258532,0.2825,61089.0,61083.0,0.3608]
[1724132259132,0.2825,61089.0,61078.0,0.081817]
[1724132259133,0.081811,61083.0,61078.0,0.081817]
[1724132259841,3.77,61088.0,61072.0,0.00024573]
[1724132259842,0.01424573,61085.0,61080.0,0.081814]
[1724132260135,0.01424573,61085.0,61075.0,0.3608]
[1724132260332,0.01424573,61085.0,61081.0,0.3608]
[1724132260527,0.01424573,61085.0,61084.0,0.081809]
[1724132261439,0.01424573,61085.0,61082.0,0.1239]
[1724132261843,0.01,61083.0,61082.0,0.1239]
[1724132262741,0.364311,61083.0,61082.0,0.001]
[1724132263548,0.378311,61083.0,61082.0,0.002]
[1724132263949,4.148311,61083.0,61082.0,0.001]
[1724132264248,4.162311,61083.0,61082.0,0.002]
[1724132267339,3.879811,61083.0,61082.0,0.002]
[1724132267540,3.798,61083.0,61082.0,0.002]
[1724132269141,3.798,61083.0,61082.0,0.083812]
[1724132270437,3.798,61083.0,61082.0,0.974932]
[1724132270744,3.798,61083.0,61082.0,1.099432]
[1724132271147,0.00024573,61085.0,61084.0,0.081809]
[1724132271350,0.00024573,61085.0,61084.0,0.572929]
[1724132271549,3.77024573,61085.0,61084.0,0.972929]
[1724132271750,3.77024573,61085.0,61084.0,1.094329]
[1724132273758,3.77124573,61085.0,61084.0,1.101329]
[1724132274362,3.77124573,61085.0,61084.0,1.107329]
[1724132275262,3.77124573,61085.0,61084.0,1.801029]
[1724132276258,0.04899566,61102.0,61084.0,2.17172]
[1724132276461,0.04899566,61102.0,61101.0,0.081787]
[1724132276659,0.04899566,61102.0,61099.0,0.3608]
[1724132276869,0.04899566,61102.0,61093.0,0.3608]
[1724132277156,3.77,61101.0,61093.0,0.3608]
[1724132277355,3.77,61101.0,61098.0,0.08179]
[1724132277554,3.77,61101.0,61099.0,0.442589]
[1724132277966,3.77,61101.0,61100.0,0.081788]
[1724132278260,3.77,61101.0,61099.0,0.3608]
[1724132278456,3.77,61101.0,61095.0,0.081794]
[1724132278655,0.3608,61099.0,61095.0,0.081794]
[1724132278854,0.081792,61097.0,61095.0,0.081794]
[1724132279763,0.081797,61093.0,61091.0,0.00196553]
[1724132279964,0.1259,61092.0,61091.0,0.00024553]
[1724132281363,0.207694,61092.0,61091.0,0.00024553]
[1724132281664,0.490194,61092.0,61091.0,0.00024553]
[1724132282066,4.261194,61092.0,61091.0,0.00024553]
[1724132282764,3.8969,61092.0,61091.0,0.00024553]
[1724132282972,3.8989,61092.0,61091.0,0.00024553]
[1724132283264,3.773,61092.0,61091.0,0.36104553]
[1724132284768,3.772,61092.0,61091.0,0.36104553]
[1724132284957,3.773,61092.0,61091.0,0.36104553]
[1724132285663,3.773,61092.0,61091.0,0.37650972]
[1724132287359,3.773,61092.0,61091.0,0.45830472]
[1724132287758,3.773,61092.0,61091.0,0.52314766]
[1724132288468,3.773,61092.0,61091.0,0.45830472]
[1724132288670,3.773,61092.0,61091.0,1.34938472]
[1724132289067,3.773,61092.0,61091.0,1.6574524]
[1724132289270,3.773,61092.0,61091.0,1.68301843]
[1724132291173,3.773,61092.0,61091.0,1.70050369]
[1724132291770,3.773,61092.0,61091.0,1.78229869]
[1724132291974,0.04893253,61102.0,61101.0,0.081781]
[1724132292169,0.04893253,61102.0,61101.0,0.8289475]
[1724132292374,0.04893253,61102.0,61101.0,1.7199475]
[1724132292578,0.04893253,61102.0,61101.0,1.74551257]
[1724132292766,0.00024553,61104.0,61103.0,0.081779]
[1724132292969,0.00024553,61104.0,61103.0,0.68850714]
[1724132293374,3.77024553,61104.0,61103.0,0.74567057]
[1724132293973,3.77024553,61104.0,61103.0,0.72010298]
[1724132294277,3.77024553,61104.0,61103.0,1.14566696]
[1724132294464,3.77624553,61104.0,61103.0,1.14666696]
[1724132295170,3.78324553,61104.0,61103.0,1.14766696]
[1724132295468,3.78324553,61104.0,61103.0,1.84136696]
[1724132295668,3.78324553,61104.0,61103.0,1.92077761]
[1724132295868,0.081762,61116.0,61112.0,0.081766]
[1724132296069,0.081762,61116.0,61115.0,0.3608]
[1724132296980,3.851762,61116.0,61115.0,0.3608]
[1724132297479,3.857762,61116.0,61115.0,0.3618]
[1724132298177,3.851762,61116.0,61115.0,0.3608]
[1724132298483,3.857762,61116.0,61115.0,0.3628]
[1724132298866,3.776,61116.0,61115.0,0.3628]
[1724132299072,3.776,61116.0,61115.0,0.444563]
[1724132299686,3.776,61116.0,61115.0,0.47298344]
[1724132300378,3.776,61116.0,61115.0,0.424563]
[1724132301072,3.776,61116.0,61115.0,0.43995739]
[1724132303480,3.776,61116.0,61115.0,0.50451798]
[1724132304375,3.776,61116.0,61115.0,0.50470909]
[1724132304782,3.776,61116.0,61115.0,0.43995739]
[1724132305780,3.776,61116.0,61115.0,0.50470726]
[1724132308879,3.776,61116.0,61115.0,0.43995739]
[1724132310583,3.776,61116.0,61115.0,0.50470726]
[1724132311280,3.776,61116.0,61115.0,0.43995739]
[1724132312681,3.776,61116.0,61115.0,2.48259474]
[1724132313088,3.776,61116.0,61115.0,2.69478763]
[1724132313681,3.776,61116.0,61115.0,1.37140763]
[1724132314588,3.776,61116.0,61115.0,1.41516768]
[1724132314788,3.776,61116.0,61115.0,1.4407242]
[1724132314984,3.776,61116.0,61115.0,1.4151665]
[1724132315188,3.776,61116.0,61115.0,1.39706489]
[1724132315387,3.776,61116.0,61115.0,1.67956489]
[1724132315692,3.776,61116.0,61115.0,1.29061356]
[1724132316293,3.776,61116.0,61115.0,1.4960645]
[1724132316483,3.776,61116.0,61115.0,1.37150872]
[1724132316684,3.776,61116.0,61115.0,1.49606454]
[1724132316879,3.776,61116.0,61115.0,0.43995739]
[1724132317598,3.776,61116.0,61115.0,0.50472388]
[1724132318083,3.776,61116.0,61115.0,0.43995739]
[1724132319490,3.776,61116.0,61115.0,0.82075739]
[1724132320289,3.776,61116.0,61115.0,0.09915739]
[1724132320494,3.776,61116.0,61115.0,0.82075739]
[1724132321588,3.776,61116.0,61115.0,0.09915739]
[1724132321794,3.776,61116.0,61115.0,0.82075739]
[1724132324396,3.776,61116.0,61115.0,0.90165255]
[1724132324799,3.776,61116.0,61115.0,1.02621818]
[1724132324990,3.776,61116.0,61115.0,0.90165255]
[1724132325389,3.776,61116.0,61115.0,0.30461833]
[1724132325598,3.776,61116.0,61115.0,1.02621833]
[1724132326392,3.776,61116.0,61115.0,0.94532317]
[1724132326591,3.776,61116.0,61115.0,0.94532299]
[1724132327400,3.776,61116.0,61115.0,0.97088226]
[1724132327704,3.776,61116.0,61115.0,0.99644094]
[1724132330999,3.776,61116.0,61115.0,0.99643914]
[1724132331201,3.776,61116.0,61115.0,0.94532119]
[1724132331400,3.776,61116.0,61115.0,0.99643897]
[1724132332406,3.776,61116.0,61115.0,1.01392079]
[1724132332993,3.776,61116.0,61115.0,0.06495725]
[1724132332994,4.81388438,61116.0,61115.0,0.06495725]
[1724132333299,0.081763,61115.0,61111.0,0.04870665]
[1724132333594,0.081763,61115.0,61109.0,0.00024553]
[1724132333595,0.2825,61110.0,61109.0,0.00024553]
[1724132333795,0.51154,61110.0,61109.0,0.00024553]
[1724132333997,5.17246,61110.0,61109.0,0.00024553]
[1724132334395,5.254229,61110.0,61109.0,0.00024553]
[1724132334794,0.081775,61106.0,61105.0,0.3608]
[1724132335301,0.972735,61106.0,61105.0,0.3608]
[1724132335699,0.972735,61106.0,61102.0,0.3608]
[1724132335700,0.081779,61103.0,61102.0,0.3608]
[1724132335899,0.364279,61103.0,61102.0,0.3608]
[1724132336395,4.134279,61103.0,61102.0,0.3608]
[1724132336797,4.2813242,61103.0,61102.0,0.3608]
[1724132336996,4.267079,61103.0,61102.0,0.3608]
[1724132337401,3.984579,61103.0,61102.0,0.3608]
[1724132338303,3.984579,61103.0,61102.0,0.3668]
[1724132338507,3.984579,61103.0,61102.0,0.3718]
[1724132341709,5.24817605,61103.0,61102.0,0.3718]
[1724132342114,5.25042138,61103.0,61102.0,0.3718]
[1724132342301,5.29925675,61103.0,61102.0,0.3718]
[1724132342500,5.25042138,61103.0,61102.0,0.011]
[1724132344007,5.39042138,61103.0,61102.0,0.011]
[1724132345203,5.39042138,61103.0,61102.0,0.006]
[1724132345415,0.081786,61097.0,61096.0,0.00024553]
[1724132345603,0.364286,61097.0,61096.0,0.00024553]
[1724132345908,0.855326,61097.0,61096.0,0.00024553]
[1724132346102,4.62757133,61097.0,61096.0,0.00024553]
[1724132346609,4.13653133,61097.0,61096.0,0.00024553]
[1724132347104,4.62757133,61097.0,61096.0,0.00024553]
[1724132347609,4.13653133,61097.0,61096.0,0.00024553]
[1724132347806,4.13753133,61097.0,61096.0,0.00024553]
[1724132348706,4.13853133,61097.0,61096.0,0.00024553]
[1724132350901,4.15297765,61097.0,61096.0,0.00024553]
[1724132351702,4.13853133,61097.0,61096.0,0.00024553]
[1724132351904,3.77424533,61097.0,61096.0,0.08203353]
[1724132352710,3.77324533,61097.0,61096.0,0.08203353]
[1724132353015,3.85503233,61097.0,61096.0,0.00324553]
[1724132353810,3.85503233,61097.0,61096.0,0.00024553]
[1724132354014,3.85503233,61097.0,61096.0,0.00224553]
[1724132354919,3.85403233,61097.0,61096.0,0.00224553]
[1724132355107,3.85403233,61097.0,61096.0,0.00624553]
[1724132355308,3.86863921,61097.0,61096.0,0.00424553]
[1724132355608,3.86963921,61097.0,61096.0,0.00024553]
[1724132355918,3.87063921,61097.0,61096.0,0.00024553]
[1724132356614,5.36426621,61097.0,61096.0,0.00024553]
[1724132357013,5.56166359,61097.0,61096.0,0.00024553]
[1724132357417,5.49636621,61097.0,61096.0,0.00024553]
[1724132357922,5.49536621,61097.0,61096.0,0.00024553]
[1724132358406,5.49636621,61097.0,61096.0,0.00024553]
[1724132358914,5.26938182,61097.0,61096.0,0.00024553]
[1724132359424,5.20426621,61097.0,61096.0,0.00024553]
[1724132360510,5.36426621,61097.0,61096.0,0.00024553]
[1724132360815,5.36426621,61097.0,61075.0,0.33095725]
[1724132360816,0.081806,61083.0,61070.0,0.1297]
[1724132361011,0.2825,61074.0,61070.0,0.1297]
[1724132361517,4.0525,61074.0,61070.0,0.17840665]
[1724132361814,3.77,61074.0,61070.0,0.17840665]
[1724132362207,3.77224533,61074.0,61073.0,0.3888]
[1724132363017,3.77224533,61074.0,61073.0,0.3748]
[1724132363313,3.77224533,61074.0,61073.0,0.3888]
[1724132363520,3.77224533,61074.0,61073.0,1.28]
[1724132363811,0.081797,61090.0,61074.0,0.4912]
[1724132364014,0.081797,61090.0,61089.0,0.3608]
[1724132364516,0.04888085,61094.0,61089.0,0.3608]
[1724132364819,0.08179,61095.0,61089.0,0.4256294]
[1724132365008,0.08179,61095.0,61094.0,0.40941702]